Workbook

Sheet 발주계획
B1: 울산광역시 공고 제2025 - 1432호
B2: 2025년도 3/4분기 발주계획(공사·용역·물품) 공고
B3: 「지방자치단체를 당사자로 하는 계약에 관한 법률」 제43조 및 같은 법 시행령 제124조에 따라 우리시 2025년도 3분기 발주계획을 다음과 같이 공고합니다. 2025. 7. 1. 울산광역시장
C4: 각 시트별 집계현황
C5: 총 | D5: =SUM(D6:D8) -> 114건 | E5: =E6+E7+E8 -> 25,214백만원
C6: 공사 | D6: =COUNTA(공사!A2:A101) -> 24건 | E6: =INT(SUM(공사!F:F)/1000000) -> 18,763백만원
C7: 용역 | D7: =COUNTA(용역!A2:A99) -> 51건 | E7: =INT(SUM(용역!G:G)/1000000) -> 3,598백만원
C8: 물품 | D8: =COUNTA(물품!A2:A117) -> 39건 | E8: =INT(SUM(물품!H:H)/1000000) -> 2,853백만원
B10: ※ 설계결과, 현지여건, 우리시 사정등에 의하여 사업의 분리 또는 사업비의 증감, 발주시기 등이 변경될 수 있습니다.

Sheet 공사
A1: 발주년도 | B1: 발주월 | C1: 공사명 | D1: 공종 | E1: 발주물량 또는 규모 | F1: 발주도급금액 (단위:원) | G1: 발주관급자재비 | H1: 발주기타금액 | I1: 발주합계금액 | J1: 금차도급금액 | K1: 부서명 | L1: 담당자 | M1: 연락처 | N1: 비고
A2: 2025 | B2: 7 | C2: 2025년 울산시립미술관 《어반아트 개인전 2부-빌스(Vhils)》전시 공간 연출 디자인 및 공사 | D2: 건축 | E2: 빌스 전시 | F2: 22,000,000 | G2: 22,000,000 | H2: 0 | I2: 22,000,000 | K2: 울산시립미술관 | L2: 김명희 | M2: 052-229-8442
A3: 2025 | B3: 7 | C3: 여천배수장 비점오염저감시설 설치공사 | D3: 토목 | E3: 여과형 비점오염저감시설 1개소 | F3: 2,792,440,000 | G3: 206,440,000 | H3: 0 | I3: 2,998,880,000 | J3: 0 | K3: 국제정원박람회추진단 | L3: 박효정 | M3: 052-229-7434
A4: 2025 | B4: 7 | C4: 회야수질개선사업소 원심탈수기 정기보수 | D4: 전문 | E4: 원심탈수기 2기 | F4: 70,000,000 | G4: 0 | H4: 0 | I4: 70,000,000 | J4: 0 | K4: 하수관리과 | L4: 김정현 | M4: 052-229-3297
A5: 2025 | B5: 7 | C5: 학산동 외 1개소 LID 비점오염 저감사업 | D5: 토목 | E5: 비점오염 저감사업 1식 | F5: 6,458,157,000 | G5: 2,150,376,000 | H5: 222,467,000 | I5: 8,831,000,000 | J5: 2,700,000,000 | K5: 맑은물정책과 | L5: 이지희 | M5: 052-229-7544
A6: 2025 | B6: 7 | C6: 효문공단 저탄소 그린산업단지 조성사업 | D6: 토목 | E6: 비점오염 저감사업 1식 | F6: 5,065,636,000 | G6: 1,161,864,000 | H6: 191,500,000 | I6: 6,419,000,000 | J6: 2,300,000,000 | K6: 맑은물정책과 | L6: 이지희 | M6: 052-229-7544
A7: 2025 | B7: 7 | C7: 특색있는 거리정원 조성공사 | D7: 전문 | E7: 정원조성 1식 | F7: 45,000,000 | G7: 50,000,000 | H7: 0 | I7: =F7+G7 -> 95,000,000 | J7: =F7 -> 45,000,000 | K7: 생태정원과 | L7: 조은정 | M7: 052-229-8522
A8: 2025 | B8: 7 | C8: CCTV 및 방송시설 설치 | D8: 통신 | E8: CCTV 및 방송시설 1식 | G8: 40,000,000 | K8: 생태정원과 | L8: 김만수 | M8: 052-229-8542
A9: 2025 | B9: 7 | C9: 온산바이오에너지센터 컨베이어플라이트 부품 교체공사 | D9: 기타 | E9: 컨베이어플라이트 케이싱 등 교체 1식 | F9: 33,480,000 | I9: 33,480,000 | J9: 33,480,000 | K9: 온산수질개선사업소 | L9: 안소군 | M9: 052-229-5982
A10: 2025 | B10: 7 | C10: 온산바이오에너지센터 원심분리기 교체공사 | D10: 기타 | E10: 원심분리기 교체1식 | F10: 386,000,000 | I10: 386,000,000 | J10: 386,000,000 | K10: 온산수질개선사업소 | L10: 안소군 | M10: 052-229-5982
A11: 2025 | B11: 7 | C11: 도시바람길숲 조성사업(신일반산단 온산지구) | D11: 기타 | E11: 1.5ha | F11: 1416600-000 | G11: 30251-000 | I11: =F11+G11 -> 1446851-000 | K11: 녹지공원과 | L11: 이영 | M11: 052-229-3322
A12: 2025 | B12: 8 | C12: 회야수질개선사업소 서지보호기(SPD) 교체 | D12: 전문 | E12: 서지보호기 140기 | F12: 59,500,000 | G12: 0 | H12: 0 | I12: 59,500,000 | J12: 0 | K12: 하수관리과 | L12: 김정현 | M12: 052-229-3297
A13: 2025 | B13: 8 | C13: 방어진수질개선사업소 케익이송노모펌프 보수공사 | D13: 전문 | E13: 이송노모펌프 1기 | F13: 70,000,000 | G13: 0 | H13: 0 | I13: 70,000,000 | J13: 0 | K13: 하수관리과 | L13: 김정현 | M13: 052-229-3297
A14: 2025 | B14: 8 | C14: 2025년 울산수목원 주제원 유지관리 공사 | D14: 기타 | E14: 주제원 유지관리 | F14: 200,000,000 | G14: 0 | H14: 0 | I14: 200,000,000 | J14: 0 | K14: 수목원 | L14: 조민기 | M14: 052-229-8571
A15: 2025 | B15: 8 | C15: 울산정원지원센터 실내정원 조성 | D15: 전문 | E15: 실내정원 조성 1식 | F15: 950,000,000 | I15: =F15+G15 -> 950,000,000 | J15: =F15 -> 950,000,000 | K15: 생태정원과 | L15: 조은정 | M15: 052-229-8522
A16: 2025 | B16: 8 | C16: 울산정원지원센터 내부시설(인테리어) 공사 | D16: 전문 | E16: 인테리어 1식 | F16: 700,000,000 | I16: =F16+G16 -> 700,000,000 | J16: =F16 -> 700,000,000 | K16: 생태정원과 | L16: 조은정 | M16: 052-229-8522
A17: 2025 | B17: 8 | C17: 울산정원지원센터 내부시설 공사(전기) | D17: 전기 | E17: 전기시설 1식 | F17: 82,907,000 | G17: 22,957,000 | I17: =F17+G17 -> 105,864,000 | J17: =F17 -> 82,907,000 | K17: 생태정원과 | L17: 조은정 | M17: 052-229-8522
A18: 2025 | B18: 8 | C18: 울산정원지원센터 내부시설 공사(통신) | D18: 통신 | E18: 통신시설 1식 | F18: 11,550,000 | G18: 32,124,000 | I18: =F18+G18 -> 43,674,000 | J18: =F18 -> 11,550,000 | K18: 생태정원과 | L18: 조은정 | M18: 052-229-8522
A19: 2025 | B19: 8 | C19: 울산정원지원센터 내부시설 공사(소방) | D19: 소방 | E19: 소방시설 1식 | F19: 4,312,000 | I19: =F19+G19 -> 4,312,000 | J19: =F19 -> 4,312,000 | K19: 생태정원과 | L19: 조은정 | M19: 052-229-8522
A20: 2025 | B20: 8 | C20: 태화강 둔치 공중화장실 설치공사 | D20: 토목 | E20: 공중화장실 1개소 철거 및 설치 | F20: 58,300,000 | G20: =13680000+80240000 -> 93,920,000 | H20: 780,000 | I20: =F20+G20+H20 -> 153,000,000 | K20: 생태정원과 | L20: 정지효 | M20: 052-229-8543
A21: 2025 | B21: 8 | C21: 태화강 둔치 공중화장실 설치공사(전기) | D21: 전기 | E21: 공중화장실 1개소 철거 및 설치 | F21: 7,249,000 | I21: =F21+G21+H21 -> 7,249,000 | K21: 생태정원과 | L21: 정지효 | M21: 052-229-8543
A22: 2025 | B22: 9 | C22: 언양수질개선사업소 2차침전지 슬러지수집기 보수 | D22: 전문 | E22: 슬러지수집기 1기 | F22: 75,000,000 | G22: 0 | H22: 0 | I22: 75,000,000 | J22: 0 | K22: 하수관리과 | L22: 김정현 | M22: 052-229-3297
A23: 2025 | B23: 9 | C23: 방어진수질개선사업소 호이스트 개조 및 보수공사 | D23: 전문 | E23: 호이스트 1기 | F23: 50,000,000 | G23: 0 | H23: 0 | I23: 50,000,000 | J23: 0 | K23: 하수관리과 | L23: 김정현 | M23: 052-229-3297
A24: 2025 | B24: 9 | C24: 2025년 억새정원 확장공사 | D24: 전문 | E24: 억새정원 조성 2,500㎡ | F24: 30,000,000 | G24: 60,000,000 | H24: 0 | I24: =F24+G24 -> 90,000,000 | J24: =F24 -> 30,000,000 | K24: 생태정원과 | L24: 박수민 | M24: 052-229-8523
A25: 2025 | B25: 9 | C25: 산불소화시설 설치사업(울주군 온양읍 내원암 일원) 실시설계용역 시행] | D25: 기타 | E25: 산불소화시설설치(소화타워 3EA 등) | F25: 175,000,000 | G25: 75,000,000 | I25: 250,000,000 | K25: 녹지공원과 | L25: 장동훈 | M25: 052-229-3356

Sheet 용역
A1: 발주년도 | B1: 발주월 | C1: 용역명 | D1: 업무유형 | E1: 용역구분 | F1: 사업내용(발주규모 등) | G1: 예산액 (단위: 원) | H1: 부서명 | I1: 담당자 | J1: 연락처 | K1: 비고
A2: 2025 | B2: 1 | C2: 사진DB관리시스템 | D2: 신규 | E2: 기술용역 | F2: 사진DB시스템 유지보수 용역 | G2: 4,250,000 | H2: 문화예술과 | I2: 장형준 | J2: 052-229-3735 | K2: 분기별집행
A3: 2025 | B3: 7 | C3: 울산119안전문화축제 행사 | D3: 장기 | E3: 일반용역 | F3: 행사 용역(1건) | G3: 130,000,000 | H3: 예방안전과 | I3: 김정식 | J3: 052-229-5331
A4: 2025 | B4: 7 | C4: 소방동요 경연대회 | D4: 장기 | E4: 일반용역 | F4: 행사 용역(1건) | G4: 40,000,000 | H4: 예방안전과 | I4: 김진구 | J4: 052-229-5333
A5: 2025 | B5: 7 | C5: 한국119청소년단「도전! 안전상식 골든벨 대회」 | D5: 장기 | E5: 일반용역 | F5: 행사 용역(1건) | G5: 6,500,000 | H5: 예방안전과 | I5: 이현민 | J5: 052-229-5332
A6: 2025 | B6: 7 | C6: 화재안전조사 계측장비 검교정 | D6: 장기 | E6: 일반용역 | F6: 검정 용역(1건) | G6: 2,000,000 | H6: 예방안전과 | I6: 장수한 | J6: 052-229-6143
A7: 2025 | B7: 7 | C7: 삼산,여천배수구역 우수토실 및 관로 매설 실시설계용역 | D7: 신규 | E7: 일반용역 | F7: 우수토실(2개소), 오수관로(D300~600, L=1,206m), 펌프장(1개소) | G7: 120,000,000 | H7: 국제정원박람회추진단 | I7: 박효정 | J7: 052-229-7434
A8: 2025 | B8: 7 | C8: 삼산여천매립장 진출입로 및 교차로 정비 실시설계용역 | D8: 신규 | E8: 일반용역 | F8: 진출입로 개설 및 정비(L=700m, B=16~25m) | G8: 80,000,000 | H8: 국제정원박람회추진단 | I8: 차경용 | J8: 052-229-7433
A9: 2025 | B9: 7 | C9: 태화강 둔치 셔틀버스(자율주행 버스) 통행로 확보 실시설계용역 | D9: 신규 | E9: 일반용역 | F9: 자율주행 버스 운행 통행로 확보(L=5.8km, B=3~8m) | G9: 70,000,000 | H9: 국제정원박람회추진단 | I9: 신덕희 | J9: 052-229-7432
A10: 2025 | B10: 7 | C10: 남산로 주유소 철거공사 실시설계용역 | D10: 신규 | E10: 일반용역 | F10: 주유소 5개소 철거 실시설계용역 1식 | G10: 44,600,000 | H10: 국제정원박람회추진단 | I10: 박현철 | J10: 052-229-7424
A11: 2025 | B11: 7 | C11: 울산도시생태축 복원사업 사전재해영향평가 용역 | D11: 신규 | E11: 일반용역 | F11: 사전재해영향평가 1식 | G11: 50,000,000 | H11: 국제정원박람회추진단 | I11: 김기만 | J11: 052-229-7423
A12: 2025 | B12: 7 | C12: 울산미포국가산업단지 확장에 따른 재해영향성검토 용역 | D12: 신규 | E12: 기술용역 | F12: 산업단지 확장(138,600㎡)에 따른 재해영향성 검토 | G12: 30,000,000 | H12: 국가산단과 | I12: 손종웅 | J12: 052-229-4384
A13: 2025 | B13: 7 | C13: 울산미포국가산업단지 확장에 따른 경관심의 용역 | D13: 신규 | E13: 기술용역 | F13: 산업단지 확장(138,600㎡)에 따른 경관심의 | G13: 110,000,000 | H13: 국가산단과 | I13: 손종웅 | J13: 052-229-4384
A14: 2025 | B14: 7 | C14: 울산문화예술회관 홈페이지 회원정보 수신동의 연동개발 | D14: 신규 | E14: 일반용역 | F14: 회원정보 연동 개발 1식 | G14: 11,000,000 | H14: 문화예술회관 경영관리과 | I14: 노유주 | J14: 052-226-8213 | K14: ㈜문화인
A15: 2025 | B15: 7 | C15: 테마가 있는 여행 기술 교육 운영 용역 | D15: 신규 | E15: 일반용역 | F15: 테마가 있는 여행 기술 교육 운영 1식 | G15: 7,000,000 | H15: 인재교육과 | I15: 이수인 | J15: 052-229-4975
A16: 2025 | B16: 7 | C16: 전입자 맞춤형 교육 2기 교육 운영 용역 | D16: 신규 | E16: 일반용역 | F16: 전입자 맞춤형 교육 2기 교육 운영 용역 1식 | G16: 6,300,000 | H16: 인재교육과 | I16: 오유진 | J16: 052-229-4974
A17: 2025 | B17: 7 | C17: CCTV 녹화기(NVR) 및 RGB Matrix 장비 수리 | D17: 신규 | E17: 일반용역 | F17: CCTV 녹화기(NVR) 메인보드 등 교체 및 RGB Matrix 전원 수리 | G17: 5,300,000 | H17: 울산도서관 운영지원과 | I17: 김연주 | J17: 052-229-6908
A18: 2025 | B18: 7 | C18: 온산하수처리구역 차집관로 부설사업 건설폐기물 처리용역 | D18: 신규 | E18: 기술용역 | F18: 건설폐기물 운반 및 처리 1식 (폐아스콘 3,213TON, 폐콘크리트 718TON, 건설폐토석 1,951TON) | G18: 357,800,000 | H18: 하수관리과 | I18: 하승욱 | J18: 052-229-3286
A19: 2025 | B19: 7 | C19: 온산하수처리구역 차집관로 부설사업 GIS DB구축 용역 | D19: 신규 | E19: 기술용역 | F19: GIS DB구축 L=2.6km | G19: 61,200,000 | H19: 하수관리과 | I19: 하승욱 | J19: 052-229-3286
A20: 2025 | B20: 7 | C20: 온산하수처리구역 차집관로 부설사업 건설재해예방 기술지도 용역 | D20: 신규 | E20: 기술용역 | F20: 건설재해예방 기술지도(48회) | G20: 10,560,000 | H20: 하수관리과 | I20: 하승욱 | J20: 052-229-3286
A21: 2025 | B21: 7 | C21: 온산하수처리구역 차집관로 부설사업 임목폐기물 처리용역 | D21: 신규 | E21: 기술용역 | F21: 임목폐기물 처리 41.3TON | G21: 7,260,000 | H21: 하수관리과 | I21: 하승욱 | J21: 052-229-3286
A22: 2025 | B22: 7 | C22: 어린이복합교육놀이공간조성 디자인 개발 및 실시설계용역 | D22: 신규 | E22: 기술용역 | F22: 디자인 개발 및 실시설계 1식 | G22: 233,200,000 | H22: 복지정책과 | I22: 이연주 | J22: 052-229-3422
A23: 2025 | B23: 7 | C23: 울산HTV 일반산업단지 완충저류시설 설치사업 지하안전영향평가 용역 | D23: 신규 | E23: 기술용역 | F23: 지하안전영향평가 1식 | G23: 20,000,000 | H23: 혁신성장지원부 | I23: 강기영 | J23: 052-229-8643
A24: 2025 | B24: 7 | C24: 울산대공원 장미원 정비 기본계획 수립 용역 | D24: 신규 | E24: 일반용역 | F24: 장미원 정비 기본구상 및 공간 재구조화 계획 등(50,000㎡) | G24: 22,000,000 | H24: 녹지공원과 | I24: 이정숙 | J24: 052-229-3343
A25: 2025 | B25: 7 | C25: 학산동 외 1개소 LID 비점오염 저감사업 외 1개소 통합건설사업관리용역 | D25: 장기 | E25: 기술용역 | F25: 건설사업관리용역 1식 | G25: 900,000,000 | H25: 맑은물정책과 | I25: 이지희 | J25: 052-229-7544
A26: 2025 | B26: 7 | C26: 명촌천 교량 설치 실시설계 용역 | D26: 신규 | E26: 기술용역 | F26: 실시설계용역 1식 | G26: 120,000,000 | H26: 맑은물정책과 | I26: 박광복 | J26: 052-229-7552
A27: 2025 | B27: 7 | C27: 태화강 수중·수변 폐기물 수거사업 | D27: 신규 | E27: 일반용역 | F27: 태화강 수중·수변 쓰레기 수거 | G27: 100,000,000 | H27: 생태정원과 | I27: 정지효 | J27: 052-229-8543
A28: 2025 | B28: 7 | C28: 울산박물관 역사실 온라인 전시관 구축 | D28: 신규 | E28: 일반용역 | F28: 역사실 360도 VR촬영 등 | G28: 19,500,000 | H28: 울산박물관 | I28: 이승우 | J28: 052-229-4724
A29: 2025 | B29: 7 | C29: 산림재난대응센터 부지조성공사 실시설계용역 | D29: 신규 | E29: 기술용역 | F29: 실시설계용역1식 | G29: 200,000,000 | H29: 녹지공원과 | I29: 남지혜 | J29: 052-229-3355
A30: 2025 | B30: 7 | C30: 수장고 소독 및 소장유물 포장훈증 | D30: 신규 | E30: 일반용역 | F30: 소독 및 소장유물 포장훈증 | G30: 12,000,000 | H30: 울산박물관 | I30: 황선혜 | J30: 052-229-4742
A31: 2025 | B31: 8 | C31: 2025 울산시립미술관 서양화 국제전 통합디자인 및 홍보물 제작 용역 | D31: 신규 | E31: 일반용역 | F31: 홍보물 제작 1식 | G31: 22,000,000 | H31: 울산시립미술관 | I31: 손혜란 | J31: 052-229-8426
A32: 2025 | B32: 8 | C32: 2025 울산시립미술관 서양화 국제전 작품 운송·설치 및 철거·반출 용역 | D32: 신규 | E32: 일반용역 | F32: 작품운송 및 설치 1식 | G32: 88,000,000 | H32: 울산시립미술관 | I32: 손혜란 | J32: 052-229-8426
A33: 2025 | B33: 8 | C33: 여천배수장 비점오염저감시설 설치공사 건설폐기물처리 용역 | D33: 신규 | E33: 일반용역 | F33: 폐콘크리트 339ton | G33: 10,450,000 | H33: 국제정원박람회추진단 | I33: 박효정 | J33: 052-229-7434
A34: 2025 | B34: 8 | C34: 여천배수장 비점오염저감시설 설치공사 설계안전성검토 용역 | D34: 신규 | E34: 일반용역 | F34: 설계안전성검토 용역 1식 | G34: 6,000,000 | H34: 국제정원박람회추진단 | I34: 박효정 | J34: 052-229-7434
A35: 2025 | B35: 8 | C35: 여천배수장 비점오염저감시설 설치공사 건설재해예방 기술지도 용역 | D35: 신규 | E35: 일반용역 | F35: 건설재해예방 기술지도 용역 1식 | G35: 4,000,000 | H35: 국제정원박람회추진단 | I35: 박효정 | J35: 052-229-7434
A36: 2025 | B36: 8 | C36: 2028울산국제정원박람회 홈페이지 구축 용역 | D36: 신규 | E36: 일반용역 | F36: 2028울산국제정원박람회 홈페이지 구축 1식 | G36: 22,000,000 | H36: 국제정원박람회추진단 | I36: 유상준 | J36: 052-229-7414
A37: 2025 | B37: 8 | C37: 지식UP콘서트 2기 교육 운영 용역 | D37: 신규 | E37: 일반용역 | F37: 지식UP콘서트 2기 교육 운영 용역 1식 | G37: 25,000,000 | H37: 인재교육과 | I37: 채명균 | J37: 052-229-4972
A38: 2025 | B38: 8 | C38: 울부심 UP 교육 운영 용역 | D38: 신규 | E38: 일반용역 | F38: 울부심 UP 교육 운영 용역 1식 | G38: 80,000,000 | H38: 인재교육과 | I38: 채명균 | J38: 052-229-4972
A39: 2025 | B39: 8 | C39: 하반기 독서통신 과정 용역 | D39: 신규 | E39: 일반용역 | F39: 하반기 독서통신 과정 1식 | G39: 39,000,000 | H39: 인재교육과 | I39: 예연성 | J39: 052-229-4973
A40: 2025 | B40: 8 | C40: 울산어린이청소년도서관 9월 독서의 달 행사 용역 | D40: 신규 | E40: 일반용역 | F40: 독서의 달 행사 기획 및 진행 용역 1식 | G40: 9,400,000 | H40: 울산도서관 어린이청소년도서관 | I40: 이은혜 | J40: 052-229-6911
A41: 2025 | B41: 8 | C41: 제80주년 광복절 기념 울산항일독립운동기념탑 참배 | D41: 신규 | E41: 일반용역 | F41: 울산항일독립운동기념탑 참배 | G41: 4,000,000 | H41: 보훈노인과 | I41: 유미은 | J41: 052-229-4812
A42: 2025 | B42: 8 | C42: 울산정원지원센터 홈페이지 구축 용역 | D42: 신규 | E42: 기술용역 | F42: 신규 홈페이지구축 | G42: 20,000,000 | H42: 생태정원과 | I42: 조은정 | J42: 052-229-8522
A43: 2025 | B43: 8 | C43: 태화강 둔치 공중화장실 설치공사 건설폐기물 처리용역(폐아스팔트) | D43: 신규 | E43: 일반용역 | F43: 건설폐기물 처리 | G43: 5,100,000 | H43: 생태정원과 | I43: 정지효 | J43: 052-229-8543
A44: 2025 | B44: 8 | C44: 태화강 둔치 공중화장실 설치공사 GIS DB 구축 용역 | D44: 신규 | E44: 일반용역 | F44: 공중화장실 상하수도 배관 GIS DB구축 | G44: 8,505,000 | H44: 생태정원과 | I44: 정지효 | J44: 052-229-8543
A45: 2025 | B45: 9 | C45: 소방정책 홍보 영상 제작 | D45: 장기 | E45: 일반용역 | F45: 영상제작(1건) | G45: 20,000,000 | H45: 예방안전과 | I45: 김진구 | J45: 052-229-5333
A46: 2025 | B46: 9 | C46: 행복한 미래설계 2기 교육 운영 용역 | D46: 신규 | E46: 일반용역 | F46: 행복한 미래설계 2기 교육 운영 1식 | G46: 33,000,000 | H46: 인재교육과 | I46: 이수인 | J46: 052-229-4975
A47: 2025 | B47: 9 | C47: 태화루 스카이워크 준공식 행사 용역 | D47: 신규 | E47: 일반용역 | F47: 준공식 행사 용역 1식 | G47: 20,000,000 | H47: 생태정원과 | I47: 김만수 | J47: 052-229-8542
A48: 2025 | B48: 9 | C48: 2025년 대곡박물관 상설전시실 개선 신규차용유물 운송 용역 | D48: 신규 | E48: 일반용역 | F48: 상설전시실 전시 개선 차용유물의 포장, 운송, 해포, 설치 등 | G48: 15,000,000 | H48: 울산박물관 | I48: 이현정 | J48: 052-229-4781
A49: 2025 | B49: 9 | C49: 2025년 울산대곡박물관 학술대회 행사 용역 | D49: 신규 | E49: 일반용역 | F49: 행사 총괄기획, 행사장 조성, 행사홍보계획 수립, 운영 등 | G49: 11,000,000 | H49: 울산박물관 | I49: 전수정 | J49: 052-229-4782
A50: 2025 | B50: 9 | C50: 2025년 대곡박물관 추석 세시풍속 체험행사 용역 | D50: 신규 | E50: 일반용역 | F50: 행사 총괄기획, 행사장 조성, 행사홍보계획 수립, 운영 등 | G50: 15,000,000 | H50: 울산박물관 | I50: 전수정 | J50: 052-229-4782
A51: 2025 | B51: 9 | C51: 대기환경측정망 정도·교정검사 | E51: 기술용역 | G51: 140,760,400 | H51: 대기연구과 | I51: 엄슬기 | J51: 052-229-6186
A52: 2025 | B52: 7~8 | C52: 2025년 "고래트로(Go-retro)" 행사 추진 | D52: 신규 | E52: 일반용역 | F52: 레트로 공간조성, 전시 및 체험 프로그램, 먹거리 등 레트로 콘텐츠 활용 문화교류의 장 제공 행사 추진 | G52: 220,000,000 | H52: 관광과 | I52: 김혜영 | J52: 052-229-3884

Sheet 물품
A1: 발주년도 | B1: 발주월 | C1: 사업명 | D1: 세부품명번호 * | E1: 품 명 | F1: 수량 | G1: 수량단위 | H1: 구매예정금액(원) | I1: 부서명 | J1: 담당자 | K1: 연락처 | L1: 비고
A2: 2025 | B2: 7 | C2: 화재대피용 방연물품 구매 | D2: 46182001 | E2: 화재대피용 방연마스크 | F2: 4285 | G2: 개 | H2: 15,000,000 | I2: 예방안전과 | J2: 장수한 | K2: 229-6143
A3: 2025 | B3: 7 | C3: 사이버침해대응센터 노후장비 교체 [암호화장비(VPN) 본청용 대형] | D3: 4322250101 | E3: 방화벽장치 | F3: 2 | G3: 대 | H3: =50250000*2 -> 100,500,000 | I3: 정보화담당관 | J3: 김웅중 | K3: 229-3015
A4: 2025 | B4: 7 | C4: 사이버침해대응센터 노후장비 교체 [암호화장비(VPN) 사업소용 중·대형] | D4: 4322250101 | E4: 방화벽장치 | F4: 1 | G4: 대 | H4: 40,000,000 | I4: 정보화담당관 | J4: 김웅중 | K4: 229-3015
A5: 2025 | B5: 7 | C5: 사이버침해대응센터 노후장비 교체 [암호화장비(VPN) 사업소용 중형] | D5: 4322250101 | E5: 방화벽장치 | F5: 1 | G5: 대 | H5: 35,000,000 | I5: 정보화담당관 | J5: 김웅중 | K5: 229-3015
A6: 2025 | B6: 7 | C6: 대기환경측정망 전산시스템 서버 백신소프트웨어 구매 | E6: V3 Net for Unix Server License 12M | F6: 1 | G6: EA | H6: 4,000,000 | I6: 대기연구과 | J6: 이원석 | K6: 052-229-6187
A7: 2025 | B7: 7 | C7: 대기환경분야 시약 및 소모품 구매 | E7: 시약 및 소모품 | F7: 28 | G7: 식 | H7: 56,300,000 | I7: 대기연구과 | J7: 양민희 | K7: 052-229-6578
A8: 2025 | B8: 7 | C8: 2025년 제3회 울산어린이청소년도서관 도서 구입 | D8: 5510151001 | E8: 국내도서 | F8: 1 | G8: 식 | H8: 49,984,000 | I8: 울산도서관 어린이청소년도서관 | J8: 이은혜 | K8: 052-229-6911
A9: 2025 | B9: 7 | C9: 전산 소모품 구입 | E9: 프린터 정품토너 | F9: 16 | G9: 개 | H9: 6,400,000 | I9: 울산도서관 정보서비스과 | J9: 정희재 | K9: 052-229-6985
A10: 2025 | B10: 7 | C10: 성암소각장 1,2호기 재건립 사업 | E10: 조명자동제어설비 | F10: 1 | G10: 식 | H10: 59,541,000 | I10: 자원순환과 | J10: 고봉일 | K10: 052-229-3252
A11: 2025 | B11: 7 | C11: 성암소각장 1,2호기 재건립 사업 | E11: 조명등 | F11: 51 | G11: 개 | H11: 352,054,000 | I11: 자원순환과 | J11: 고봉일 | K11: 052-229-3252
A12: 2025 | B12: 7 | C12: 성암소각장 1,2호기 재건립 사업 | E12: 펌프류 | F12: 1 | G12: 식 | H12: 77,000,000 | I12: 자원순환과 | J12: 차동욱 | K12: 052-229-3253
A13: 2025 | B13: 7 | C13: 성암소각장 1,2호기 재건립 사업 | E13: 엘리베이터 | F13: 3 | G13: 대 | H13: 242,675,000 | I13: 자원순환과 | J13: 안선형 | K13: 052-229-3254
A14: 2025 | B14: 7 | C14: 성암소각장 1,2호기 재건립 사업 | E14: 금속제창 | F14: 29,955 | G14: kg | H14: 460,189,665 | I14: 자원순환과 | J14: 안선형 | K14: 052-229-3254
A15: 2025 | B15: 7 | C15: 일차침전지 슬러지수집기 제조·구매 설치 | D15: 4710153601 | E15: 슬러지수집기 | F15: 1 | G15: 식 | H15: 184,800,000 | I15: 온산수질개선사업소 | J15: 한승훈 | K15: 052-229-5996
A16: 2025 | B16: 8 | C16: 지능형 지속공격 방어시스템(EDR) | D16: 4322250101 | E16: 보안소프트웨어 | F16: 1 | G16: 식 | H16: 320,000,000 | I16: 정보화담당관 | J16: 김웅중 | K16: 052-229-3015
A17: 2025 | B17: 8 | C17: 행정전산장비(컴퓨터) 구입 | D17: 43211507 | E17: 데스크톱컴퓨터 | F17: 100 | G17: 대 | H17: 119,214,380 | I17: 정보화담당관 | J17: 한상혁 | K17: 052-229-2354
A18: 2025 | B18: 8 | C18: 질병조사 및 감시 | E18: 질병조사 및 감시관련 시약 및 소모품 품목 | F18: 20 | G18: ea | H18: 13,000,000 | I18: 질병조사과 | J18: 우해미 | K18: 052-229-4693
A19: 2025 | B19: 8 | C19: 지역거점진단센터 운영비 지원 | E19: 지역거점 감염병 검사 시약 및 소모품 품목 | F19: 30 | G19: ea | H19: 25,000,000 | I19: 질병조사과 | J19: 김수희 | K19: 052-229-4694
A20: 2025 | B20: 8 | C20: 수질 및 먹는물 분석 시약 구매 | D20: 12161599 | E20: 미생물 분석용 시약, 표준물질 | F20: 20 | G20: ea | H20: 20,000,000 | I20: 수질연구과 | J20: 임지유 | K20: 052-229-6193
A21: 2025 | B21: 8 | C21: 2025년 보건환경분야 시약 및 소모품 구매 | D21: 12161599 | E21: 시약 및 소모품 | F21: 1 | G21: 식 | H21: 10,000,000 | I21: 생활환경과 | J21: 홍명희 | K21: 052-229-6692
A22: 2025 | B22: 8 | C22: 2025년 비도서 3차 | D22: 5511150601 | E22: 전자책 및 오디오북 | F22: 300 | G22: 종 | H22: 43,500,000 | I22: 울산도서관 정보서비스과 | J22: 장원익 | K22: 052-229-6983
A23: 2025 | B23: 8 | C23: 친환경 축산관리실(초유은행) 운영 초유 구입 | E23: 초유 | F23: 400 | G23: 리터 | H23: 2,000,000 | I23: 농업지원과 | J23: 이현석 | K23: 052-229-5454
A24: 2025 | B24: 8 | C24: 관리사무소 구입 | E24: 이동식 초소 | F24: 2 | G24: 개 | H24: 54,000,000 | I24: 생태정원과 | J24: 김만수 | K24: 052-229-8542
A25: 2025 | B25: 8 | C25: 성암소각장 1,2호기 재건립 사업 | E25: 유량계 | F25: 2 | G25: 대 | H25: 127,826,000 | I25: 자원순환과 | J25: 고봉일 | K25: 052-229-3252
A26: 2025 | B26: 8 | C26: 산불진화장비 구입 | E26: 산불진화복 | F26: 300 | G26: EA | H26: 90,000,000 | I26: 녹지공원과 | J26: 정성문 | K26: 052-229-3352
A27: 2025 | B27: 8 | C27: 산불진화장비 구입 | E27: 등짐펌프 | F27: 1,000 | G27: EA | H27: 43,000,000 | I27: 녹지공원과 | J27: 정성문 | K27: 052-229-3352
A28: 2025 | B28: 8 | C28: 산불진화장비 구입 | E28: 보안경 | F28: 750 | G28: EA | H28: 11,250,000 | I28: 녹지공원과 | J28: 정성문 | K28: 052-229-3352
A29: 2025 | B29: 8 | C29: 산불진화장비 구입 | E29: 방염마스크 | F29: 5,000 | G29: EA | H29: 10,000,000 | I29: 녹지공원과 | J29: 정성문 | K29: 052-229-3352
A30: 2025 | B30: 8 | C30: 산불진화장비 구입 | E30: 갈퀴 | F30: 1,000 | G30: EA | H30: 7,000,000 | I30: 녹지공원과 | J30: 정성문 | K30: 052-229-3352
A31: 2025 | B31: 8 | C31: 산불진화장비 구입 | E31: 장갑 | F31: 25,000 | G31: EA | H31: 6,250,000 | I31: 녹지공원과 | J31: 정성문 | K31: 052-229-3352
A32: 2025 | B32: 9 | C32: 노후 민방위 경보시설 교체(추가) | D32: 4617160601 | E32: 사이렌 | F32: 2 | G32: 식 | H32: 80,000,000 | I32: 자연재난과 | J32: 최준호 | K32: 052-229-2693
A33: 2025 | B33: 9 | C33: 2025년 개발제한구역 항공사진 판독 도면제작 | D33: 5510159901 | E33: 기타인쇄물 | F33: 1 | G33: 식 | H33: 10,000,000 | I33: 도시계획과 | J33: 정용주 | K33: 052-229-4325
A34: 2025 | B34: 9 | C34: 2025년 보건환경분야 시약 및 소모품 구매 | D34: 12161599 | E34: 시약 및 소모품 | F34: 1 | G34: 식 | H34: 12,000,000 | I34: 환경조사과 | J34: 탁경학 | K34: 052-229-6173
A35: 2025 | B35: 9 | C35: 식품·의약품 검사 | E35: 시약 및 소모품 | F35: 1 | G35: 식 | H35: 20,000,000 | I35: 식약품연구과 | J35: 원은지 | K35: 052-229-5232
A36: 2025 | B36: 9 | C36: 대기환경측정망 UPS 축전지 교체 | E36: UPS 축천지 | F36: 120 | G36: EA | H36: 7,000,000 | I36: 대기연구과 | J36: 엄슬기 | K36: 052-229-6186
A37: 2025 | B37: 9 | C37: 시험분석용 소모품 구매 | D37: 41121806 | E37: GC용 바이알, 캡, 컬럼, 플라스크 등 | F37: 20 | G37: ea | H37: 20,000,000 | I37: 수질연구과 | J37: 임지유 | K37: 052-229-6193
A38: 2025 | B38: 9 | C38: 울산도서관 제5회 국내도서 구입 | E38: 도서(2,970여권) | F38: 1 | G38: 식 | H38: 49,955,400 | I38: 울산도서관 정보서비스과 | J38: 우지혜 | K38: 052-229-6981
A39: 2025 | B39: 9 | C39: 농업미생물 배양실 배지 구입 | D39: 1012159901 | E39: 보조사료(미생물 배지) | F39: 650 | G39: 포 | H39: 49,000,000 | I39: 농업지원과 | J39: 김소영 | K39: 052-229-5456
A40: 2025 | B40: 9 | C40: 기증유물목록집 제작 | D40: 551015 | E40: 도서 | F40: 300 | G40: 권 | H40: 20,000,000 | I40: 울산박물관 | J40: 이하나 | K40: 052-229-4732

Sheet 작성요령(공사) (hidden)
A1: 항목 | B1: 입력방법 | C1: 입력예시
A2: 발주년도 | B2: 발주년도 입력 | C2: 2025
A3: 발주월 | B3: 발주월 입력 | C3: 4
A4: 공사명 | B4: 공사명 입력
A5: 공종 | B5: 토건/ 토목/ 건축/ 전문/ 전기/ 통신/ 소방/ 기타 중 택 1 | C5: 건축
A6: 발주물량 또는 규모 | B6: 발주물량
A7: 발주도급금액 | B7: 노무를 제공하고 수취하는 공사관련 금액 | C7: 100,000,000
A8: 발주관급자재비 | B8: 발주기관이 제공하는 공사자재 금액 | C8: 100,000,000
A9: 발주기타금액 | C9: 100,000,000
A10: 발주합계금액 | B10: 발주도급액+발주관급자재비+기타 자동입력 | C10: =SUM(C7:C9) -> 300,000,000
A11: 금차도급금액 | B11: 장기초년도 요청인 경우 금차년도 집행예정액 입력
A12: 부서명 | B12: 해당부서 입력 | C12: 교통기획과
A13: 담당자 | B13: 담당자명 입력 | C13: 홍길동
A14: 연락처 | B14: 담당자 연락처 입력 | C14: 052-229-1234
A15: 비고란

Sheet 작성요령(용역) (hidden)
A1: 항목 | B1: 입력방법 | C1: 입력예시
A2: 발주년도 | B2: 발주년도 입력 | C2: 2025
A3: 발주월 | B3: 발주월 입력 | C3: 5
A4: 용역명 | B4: 용역 명칭
A5: 업무유형 | B5: 신규/장기 중 택1 | C5: 신규
A6: 용역구분 | B6: 일반용역/기술용역 중 택1 | C6: 기술용역
A7: 사업내용 | B7: 사업내용 | C7: 영상제작 1식
A8: 예산액 (단위: 원) | B8: (1)신규: 전체 예산금액 입력 (2)장기: 당해년도 집행금액 입력 | C8: 100,000,000
A9: 부서명 | B9: 해당부서 입력 | C9: 관광과
A10: 담당자 | B10: 담당자명 입력 | C10: 홍길동
A11: 연락처 | B11: 담당자 연락처 입력 | C11: 052-229-1234
A12: 비고

Sheet 작성요령(물품) (hidden)
A1: 항목 | B1: 입력방법 | C1: 입력예시
A2: 발주년도 | B2: 발주년도 입력 | C2: 2025
A3: 발주월 | B3: 발주월 입력 | C3: 5
A4: 사업명 | B4: 사업명 입력
A5: 세부품명번호 | B5: 물품별 세부품명번호(10자리) 입력 | C5: 3015200101
A6: 세부품명 | B6: 세부품명 입력 | C6: 디자인형울타리
A7: 수량 | B7: 수량 입력 | C7: 1
A8: 단위 | B8: 단위 입력 | C8: \
A9: 구매예정금액 | B9: 구매예정금액 입력 | C9: 40,000,000
A10: 부서명 | B10: 해당부서 입력 | C10: 회계과
A11: 담당자 | B11: 담당자명 입력 | C11: 홍길동
A12: 연락처 | B12: 담당자 연락처 입력 | C12: 052-229-1234
A13: 비고
